bitfinex/quotes_BTCUSD_20241018
["timestamp","ask_amount","ask_price","bid_price","bid_amount"]
[1729275594397,0.16871336,68695.0,68693.0,0.0971]
[1729275594691,0.16871336,68695.0,68687.0,0.1]
[1729275594692,0.00889414,68695.0,68694.0,0.277428]
[1729275594941,0.00889414,68695.0,68694.0,0.32101524]
[1729275595180,0.22223424,68709.0,68699.0,0.0949]
[1729275595181,0.21892041,68709.0,68699.0,0.0949]
[1729275595433,0.21892041,68709.0,68701.0,0.0949]
[1729275595434,0.01417757,68708.0,68701.0,0.0949]
[1729275595675,0.01135896,68708.0,68701.0,0.1949]
[1729275596641,0.15095915,68707.0,68701.0,0.1949]
[1729275596886,0.01417126,68706.0,68701.0,0.1949]
[1729275597145,0.14895915,68705.0,68701.0,0.1949]
[1729275597403,0.00331383,68704.0,68701.0,0.1949]
[1729275597658,0.01136244,68704.0,68701.0,0.1949]
[1729275600589,0.01136244,68704.0,68700.0,0.0833]
[1729275600590,0.14895915,68703.0,68695.0,0.182]
[1729275600832,0.15227298,68703.0,68697.0,0.21809141]
[1729275601100,0.00804459,68702.0,68698.0,0.1]
[1729275601526,0.00804459,68702.0,68700.0,0.1]
[1729275601956,0.000829,68709.0,68700.0,0.1]
[1729275602374,0.00805667,68708.0,68700.0,0.1]
[1729275602615,0.00331383,68707.0,68700.0,0.1]
[1729275602821,0.15227298,68707.0,68700.0,0.1]
[1729275603025,0.16032764,68707.0,68695.0,0.1797]
[1729275603233,0.002,68705.0,68695.0,0.1]
[1729275603446,0.01084915,68706.0,68697.0,0.1]
[1729275603447,0.16312213,68704.0,68697.0,0.1]
[1729275603662,0.01085133,68703.0,68697.0,0.1]
[1729275603867,0.15227298,68702.0,68697.0,0.1]
[1729275604080,0.16031757,68702.0,68697.0,0.1]
[1729275604708,0.15700374,68702.0,68697.0,0.1]
[1729275607837,0.15700374,68702.0,68694.0,0.000828]
[1729275607838,0.00331383,68701.0,68694.0,0.000828]
[1729275608041,0.15700901,68700.0,68694.0,0.000828]
[1729275608192,0.00331383,68699.0,68696.0,0.1]
[1729275608397,0.00804583,68698.0,68696.0,0.1]
[1729275609343,0.00804583,68698.0,68694.0,0.000828]
[1729275609754,0.14895915,68700.0,68694.0,0.000828]
[1729275609988,0.00804382,68697.0,68694.0,0.000828]
[1729275610189,0.14895915,68700.0,68694.0,0.000828]
[1729275610393,0.00804181,68696.0,68694.0,0.000828]
[1729275610543,0.00331383,68699.0,68694.0,0.000828]
[1729275610750,0.00803979,68695.0,68694.0,0.000828]
[1729275610980,0.14895915,68700.0,68694.0,0.000828]
[1729275611153,0.00803979,68695.0,68694.0,0.000828]
[1729275611537,0.14895915,68700.0,68694.0,0.000828]
[1729275611737,0.00816079,68695.0,68694.0,0.000828]
[1729275611943,0.14895915,68700.0,68694.0,0.000828]
[1729275612137,0.00816079,68695.0,68694.0,0.000828]
[1729275612379,0.00331383,68699.0,68694.0,0.01752782]
[1729275614075,0.00331383,68699.0,68694.0,0.000828]
[1729275614326,0.14895915,68700.0,68694.0,0.000828]
[1729275615765,0.00331383,68699.0,68694.0,0.000828]
[1729275616417,0.14895915,68700.0,68694.0,0.000828]
[1729275616837,0.00331383,68699.0,68694.0,0.000828]
[1729275617920,0.00816684,68698.0,68694.0,0.000828]
[1729275618127,0.00331383,68697.0,68694.0,0.000828]
[1729275618571,0.00827798,68696.0,68694.0,0.000828]
[1729275619004,0.00331383,68699.0,68694.0,0.000828]
[1729275619206,0.00827596,68695.0,68694.0,0.000828]
[1729275619406,0.00331383,68699.0,68694.0,0.000828]
[1729275619607,0.00827295,68695.0,68694.0,0.000828]
[1729275619864,0.00331383,68699.0,68694.0,0.000828]
[1729275620122,0.00827295,68695.0,68694.0,0.000828]
[1729275620358,0.15982016,68695.0,68694.0,0.000828]
[1729275620561,0.1572321,68695.0,68694.0,0.000828]
[1729275620761,0.16809246,68695.0,68694.0,0.000828]
[1729275621265,0.17140629,68695.0,68694.0,0.000828]
[1729275621687,0.02244714,68695.0,68694.0,0.000828]
[1729275621887,0.01086036,68695.0,68694.0,0.000828]
[1729275622259,0.15981951,68695.0,68694.0,0.000828]
[1729275622467,0.17140629,68695.0,68694.0,0.000828]
[1729275624272,0.18878286,68695.0,68694.0,0.000828]
[1729275624490,0.17140629,68695.0,68694.0,0.000828]
[1729275624954,0.17140028,68695.0,68694.0,0.000828]
[1729275627488,0.16808645,68695.0,68694.0,0.000828]
[1729275628645,0.16808546,68695.0,68694.0,0.000828]
[1729275629358,0.16808546,68695.0,68694.0,0.100828]
[1729275630006,0.15981251,68695.0,68694.0,0.100828]
[1729275630432,0.16808546,68695.0,68694.0,0.100828]
[1729275630613,0.16808546,68695.0,68694.0,0.000828]
[1729275631782,0.16554656,68695.0,68694.0,0.000828]
[1729275632662,0.1546932,68695.0,68694.0,0.000828]
[1729275633520,0.1546932,68695.0,68694.0,0.0177789]
[1729275633950,0.1546932,68695.0,68694.0,0.000828]
[1729275635762,0.00573405,68695.0,68694.0,0.000828]
[1729275635990,0.000829,68703.0,68694.0,0.200528]
[1729275636216,0.16313215,68702.0,68696.0,0.0782]
[1729275636426,0.01659011,68701.0,68696.0,0.0782]
[1729275636624,0.000829,68703.0,68696.0,0.0782]
[1729275639158,0.000829,68703.0,68698.0,0.1]
[1729275639407,0.000829,68703.0,68699.0,0.0988]
[1729275639766,0.000829,68703.0,68701.0,0.1]
[1729275639967,0.000829,68703.0,68702.0,0.0765]
[1729275640167,0.000829,68703.0,68702.0,0.2753]
[1729275640374,0.000749,68703.0,68702.0,0.2753]
[1729275641919,0.000749,68703.0,68702.0,0.29267197]
[1729275644217,0.000749,68703.0,68702.0,0.2753]
[1729275650580,0.000749,68703.0,68694.0,0.000828]
[1729275650581,0.000749,68703.0,68696.0,0.1765]
[1729275650762,0.000749,68703.0,68698.0,0.1]
[1729275652876,0.000749,68703.0,68696.0,0.1765]
[1729275653108,0.15227298,68702.0,68694.0,0.000828]
[1729275653360,0.08544171,68701.0,68694.0,0.000828]
[1729275653562,0.15227298,68700.0,68694.0,0.000828]
[1729275653941,0.0057401,68699.0,68694.0,0.000828]
[1729275654144,0.15227298,68698.0,68694.0,0.000828]
[1729275654556,0.00573849,68697.0,68694.0,0.000828]
[1729275654750,0.15227298,68696.0,68694.0,0.000828]
[1729275655105,0.00573687,68695.0,68694.0,0.000828]
[1729275655585,0.00573687,68695.0,68694.0,0.091828]
[1729275655787,0.00573687,68695.0,68694.0,0.171528]
[1729275656006,0.00573687,68695.0,68694.0,0.271528]
[1729275656246,0.000749,68703.0,68695.0,0.1]
[1729275656475,0.15981707,68702.0,68695.0,0.1]
[1729275656721,0.01085792,68701.0,68695.0,0.1]
[1729275656968,0.14895915,68700.0,68695.0,0.1]
[1729275657219,0.00331383,68699.0,68695.0,0.1]
[1729275657429,0.00905393,68699.0,68695.0,0.1]
[1729275657632,0.00905393,68699.0,68694.0,0.171528]
[1729275657633,0.0057401,68699.0,68698.0,0.1]
[1729275658051,0.000749,68703.0,68698.0,0.1]
[1729275658706,0.000749,68703.0,68695.0,0.1]
[1729275659574,0.01086649,68702.0,68695.0,0.1]
[1729275659808,0.000749,68703.0,68695.0,0.1]
[1729275660062,0.01086647,68702.0,68694.0,0.091828]
[1729275660527,0.0057395,68701.0,68694.0,0.091828]
[1729275660731,0.00406283,68703.0,68694.0,0.091828]
[1729275660935,0.01086756,68702.0,68694.0,0.091828]
[1729275661140,0.0057403,68702.0,68694.0,0.091828]
[1729275661349,0.00331383,68701.0,68694.0,0.091828]
[1729275661856,0.00573869,68700.0,68694.0,0.091828]
[1729275662109,0.00331383,68699.0,68694.0,0.091828]
[1729275662348,0.00331383,68700.0,68694.0,0.091828]
[1729275662577,0.00573708,68698.0,68694.0,0.091828]
[1729275662831,0.00573789,68699.0,68694.0,0.091828]
[1729275667322,0.00573708,68698.0,68697.0,0.21809141]
[1729275667537,0.000749,68703.0,68698.0,0.0918]
[1729275667741,0.000749,68703.0,68699.0,0.00290495]
[1729275668114,0.000749,68703.0,68701.0,0.1]
[1729275668317,0.000749,68703.0,68702.0,0.27330612]
[1729275670560,0.000749,68703.0,68702.0,0.91268515]
[1729275670742,0.000749,68703.0,68702.0,4.01598115]
[1729275671012,0.001656,68713.0,68705.0,0.123]
[1729275671198,0.001656,68713.0,68707.0,0.102]
[1729275671433,0.001656,68713.0,68708.0,3.89098951]
[1729275671642,0.001656,68713.0,68708.0,4.26804151]
[1729275672329,0.001656,68713.0,68708.0,2.01017459]
[1729275672551,0.001656,68713.0,68708.0,2.03066266]
[1729275672727,0.001656,68713.0,68708.0,0.42685915]
[1729275672995,0.001656,68713.0,68708.0,0.47034216]
[1729275673525,0.001656,68713.0,68708.0,0.42685915]
[1729275677629,0.001656,68713.0,68708.0,0.2779]
[1729275685990,0.001656,68713.0,68708.0,0.0948]
[1729275686829,0.001656,68713.0,68708.0,0.21155491]
[1729275689370,0.001656,68713.0,68708.0,0.1948]
[1729275689721,0.001656,68713.0,68708.0,0.0948]
[1729275691536,0.001656,68713.0,68704.0,0.0766]
[1729275691692,0.001656,68713.0,68703.0,0.02442168]
[1729275692078,0.001656,68713.0,68703.0,0.001658]
[1729275695883,0.001656,68713.0,68705.0,0.1]
[1729275696115,0.001656,68713.0,68703.0,0.001658]
[1729275696409,0.001656,68713.0,68703.0,0.001415]
[1729275698408,0.001656,68713.0,68704.0,0.00077964]
[1729275701656,0.001656,68713.0,68703.0,0.001415]
[1729275702277,0.00576533,68708.0,68703.0,0.001415]
[1729275703015,0.00907916,68708.0,68703.0,0.001415]
[1729275703269,0.33534712,68707.0,68703.0,0.001415]
[1729275703544,0.09588797,68706.0,68703.0,0.001415]
[1729275703764,0.0817,68704.0,68703.0,0.001415]
[1729275703967,0.24484712,68704.0,68703.0,0.001415]
[1729275704207,0.01663502,68704.0,68703.0,0.001415]
[1729275704421,0.00576088,68704.0,68703.0,0.001415]
[1729275704632,0.000829,68709.0,68703.0,0.001415]
[1729275704860,0.000829,68709.0,68705.0,0.1]
[1729275705059,0.00575897,68708.0,68706.0,0.08145873]
[1729275705317,0.00575897,68708.0,68706.0,0.08251062]
[1729275705554,0.000829,68709.0,68706.0,0.08251062]
[1729275706209,0.000829,68709.0,68706.0,0.0796]
[1729275708042,0.000829,68709.0,68706.0,0.09676771]
[1729275708256,0.000829,68709.0,68708.0,0.1]
[1729275708714,0.000829,68709.0,68708.0,0.10078102]
[1729275709468,0.000829,68709.0,68708.0,0.00078102]
[1729275709686,0.000829,68709.0,68706.0,0.1796]
[1729275709687,0.000829,68709.0,68707.0,0.00078102]
[1729275709914,0.000829,68709.0,68708.0,0.1]
[1729275710138,0.000829,68709.0,68708.0,0.10291037]
[1729275711132,0.000829,68709.0,68708.0,0.00291037]
[1729275711375,0.000829,68709.0,68707.0,0.00291037]
[1729275712804,0.000829,68709.0,68708.0,0.20795016]
[1729275713096,0.000829,68709.0,68708.0,1.30289516]
[1729275713329,0.000829,68709.0,68708.0,1.53331523]
[1729275713582,0.000829,68709.0,68708.0,1.40289516]
[1729275714530,0.000829,68709.0,68708.0,1.38863122]
[1729275715236,0.000829,68709.0,68708.0,0.49828622]
[1729275715510,0.000829,68709.0,68708.0,0.62877686]
[1729275715700,0.000829,68709.0,68708.0,5.67877686]
[1729275716695,0.000829,68709.0,68708.0,5.6787594]
[1729275717308,0.000829,68709.0,68708.0,4.52654922]
[1729275717508,0.000829,68709.0,68708.0,4.41089922]
[1729275717714,0.000829,68709.0,68708.0,4.02793422]
[1729275718115,0.21813141,68732.0,68713.0,0.002]
[1729275718289,0.21813141,68732.0,68715.0,0.33843055]
[1729275718612,0.21813141,68732.0,68715.0,3.4278567]
[1729275718847,0.21813141,68732.0,68715.0,3.1840797]
[1729275719375,0.21813141,68732.0,68715.0,3.11884915]
[1729275720355,0.21813141,68732.0,68715.0,1.14707915]
[1729275720589,0.21813141,68732.0,68715.0,0.95326915]
[1729275721187,0.21813141,68732.0,68715.0,1.01716915]
[1729275721441,0.21813141,68732.0,68715.0,1.06064552]
[1729275723616,0.21813141,68732.0,68715.0,1.01716915]
[1729275724571,0.08224,68728.0,68715.0,0.88048015]
[1729275724767,0.08224,68728.0,68715.0,0.63232615]
[1729275724971,0.0977,68727.0,68715.0,0.31285915]
[1729275725452,0.0977,68727.0,68715.0,0.31451715]
[1729275725657,0.0168452,68716.0,68715.0,0.31451715]
[1729275730651,0.0168452,68716.0,68715.0,0.54923715]
[1729275733824,0.0168452,68716.0,68715.0,0.62903715]
[1729275734209,0.0168452,68716.0,68715.0,0.6942677]
[1729275734428,0.0168452,68716.0,68715.0,5.4769167]
[1729275735044,0.0168452,68716.0,68715.0,5.4627057]
[1729275735304,0.0168452,68716.0,68715.0,4.4137437]
[1729275735512,0.0168452,68716.0,68715.0,2.57533715]
[1729275735758,0.0168452,68716.0,68715.0,2.55440415]
[1729275736389,0.0168452,68716.0,68715.0,0.55632915]
[1729275736611,0.0168452,68716.0,68715.0,0.165558]
[1729275736758,0.0168452,68716.0,68715.0,0.065558]
[1729275736970,0.02240438,68716.0,68715.0,0.065558]
[1729275740305,0.02240438,68716.0,68715.0,0.40631715]
[1729275740511,4e-05,68721.0,68716.0,0.1]
[1729275740734,4e-05,68721.0,68718.0,0.1]
[1729275740936,4e-05,68721.0,68720.0,0.1]
[1729275741138,4e-05,68721.0,68720.0,1.19771715]
[1729275741342,4e-05,68721.0,68720.0,2.19771715]
[1729275741802,4e-05,68721.0,68720.0,2.18726715]
[1729275742056,4e-05,68721.0,68720.0,0.1]
[1729275742293,4e-05,68721.0,68715.0,0.165558]
[1729275742715,0.0855301,68720.0,68715.0,0.165558]
[1729275743776,0.0855301,68720.0,68715.0,0.065558]
[1729275748104,0.0863591,68720.0,68715.0,0.065558]
[1729275751526,0.0863591,68720.0,68716.0,0.1]
[1729275751527,0.000829,68720.0,68716.0,0.1]
[1729275751711,0.000829,68720.0,68718.0,0.14347188]
[1729275751915,0.000829,68720.0,68719.0,0.24895915]
[1729275753402,0.000829,68720.0,68719.0,0.31424007]
[1729275755632,0.000829,68720.0,68719.0,0.29249681]
[1729275757410,0.000829,68720.0,68719.0,0.30914828]
[1729275757865,0.000829,68720.0,68719.0,0.26561062]
[1729275759120,0.000829,68720.0,68719.0,0.11665147]
[1729275759300,0.000829,68720.0,68719.0,0.1]
[1729275760309,0.000829,68720.0,68717.0,0.04355632]
[1729275762781,0.000829,68720.0,68719.0,0.04355632]
[1729275762979,0.000829,68720.0,68716.0,0.1]
[1729275762980,0.000829,68720.0,68718.0,0.14355632]
[1729275763128,0.000829,68720.0,68718.0,0.04355632]
[1729275763559,0.000829,68720.0,68719.0,0.04355632]
[1729275763821,0.000829,68720.0,68719.0,0.00112211]
[1729275764030,0.000829,68720.0,68719.0,3.28503645]
[1729275764240,0.000829,68720.0,68719.0,3.38171434]
[1729275764448,4e-05,68728.0,68720.0,0.123]
[1729275764659,4e-05,68728.0,68724.0,0.2791]
[1729275764876,4e-05,68728.0,68727.0,0.1]
[1729275765088,4e-05,68728.0,68727.0,4.11201692]
[1729275765307,4e-05,68728.0,68727.0,0.29369892]
[1729275765520,4e-05,68728.0,68727.0,0.73026892]
[1729275765733,4e-05,68728.0,68727.0,0.58543892]
[1729275766427,4e-05,68728.0,68727.0,0.60220374]
[1729275766637,4e-05,68728.0,68727.0,0.71098999]
[1729275767704,4e-05,68728.0,68727.0,0.60220374]
[1729275768534,4e-05,68728.0,68727.0,0.55746397]
[1729275769326,4e-05,68728.0,68727.0,0.54069915]
[1729275769554,4e-05,68728.0,68727.0,0.62769257]
[1729275769757,4e-05,68728.0,68727.0,0.54069915]
[1729275770592,4e-05,68728.0,68727.0,0.6059282]
[1729275772032,0.000869,68728.0,68727.0,0.6059282]
[1729275774146,0.000869,68728.0,68727.0,0.54069915]
[1729275774377,0.000869,68728.0,68727.0,0.6059282]
[1729275774610,0.000869,68728.0,68727.0,0.54069915]
[1729275775543,0.000869,68728.0,68727.0,0.58416752]
[1729275779968,0.000869,68728.0,68727.0,0.54069915]
[1729275780177,0.000869,68728.0,68727.0,0.58415517]
[1729275780472,0.000869,68728.0,68727.0,0.58415318]
[1729275781825,0.000869,68728.0,68727.0,0.54069915]
[1729275782269,0.000869,68728.0,68727.0,0.58415318]
[1729275785241,0.000869,68728.0,68727.0,0.54069915]
[1729275785452,0.000869,68728.0,68727.0,0.58415318]
[1729275786313,0.000869,68728.0,68727.0,0.54069915]
[1729275786743,0.000869,68728.0,68727.0,0.58415318]
[1729275786956,0.000869,68728.0,68727.0,0.60077974]
[1729275787165,0.000869,68728.0,68727.0,0.55732571]
[1729275789318,0.000869,68728.0,68727.0,0.54069915]
[1729275789528,0.000869,68728.0,68727.0,0.58414977]
[1729275789756,0.000869,68728.0,68727.0,0.54069915]
[1729275790902,0.000869,68728.0,68715.0,0.19590987]
[1729275790903,0.000869,68728.0,68725.0,0.1]
[1729275791126,0.000869,68728.0,68722.0,0.04345062]
[1729275791375,0.000869,68728.0,68724.0,0.1]
[1729275792339,0.000869,68728.0,68722.0,0.21809141]
[1729275792340,0.000869,68728.0,68723.0,0.1]
[1729275792985,0.000869,68728.0,68724.0,0.00129531]
[1729275793200,0.000869,68728.0,68723.0,0.14345062]
[1729275793426,0.000869,68728.0,68725.0,0.10408364]
[1729275793652,0.000869,68728.0,68726.0,1.233998]
[1729275793901,0.000869,68728.0,68727.0,0.1]
[1729275794115,0.000869,68728.0,68727.0,0.10213182]
[1729275794796,0.000869,68728.0,68727.0,0.00213182]
[1729275796062,0.000869,68728.0,68726.0,0.00213182]
[1729275796265,0.000869,68728.0,68727.0,0.1]
[1729275796543,0.000869,68728.0,68727.0,0.10213177]
[1729275796978,0.000869,68728.0,68727.0,0.19030371]
[1729275797416,0.000869,68728.0,68727.0,0.09030371]
[1729275797849,0.000869,68728.0,68727.0,0.09034177]
[1729275798264,0.000869,68728.0,68727.0,0.08821]
[1729275799111,0.000869,68728.0,68727.0,0.04472132]
[1729275800557,0.000869,68728.0,68727.0,0.20995435]
[1729275802064,0.083169,68728.0,68722.0,0.04349891]
[1729275802275,0.08851562,68728.0,68720.0,0.04349891]
[1729275802483,0.08851562,68728.0,68719.0,0.26159295]
[1729275803312,0.08851562,68728.0,68720.0,0.1]
[1729275807169,0.08851562,68728.0,68715.0,0.1090756]
[1729275807170,0.22140524,68727.0,68715.0,0.1090756]
[1729275807380,0.1713,68726.0,68715.0,0.165558]
[1729275807590,0.00331383,68725.0,68715.0,0.165558]
[1729275808033,0.00582379,68724.0,68715.0,0.165558]
[1729275809128,0.00582379,68724.0,68723.0,0.1]
[1729275809561,0.1713,68726.0,68723.0,0.1]
[1729275809768,0.00581224,68724.0,68723.0,0.1]
[1729275809975,0.1713,68726.0,68723.0,0.1]
[1729275810180,0.00581224,68724.0,68716.0,0.1]
[1729275810424,0.1713,68726.0,68716.0,0.1435176]
[1729275810627,0.00581136,68723.0,68716.0,0.1435176]
[1729275810838,0.00581136,68723.0,68716.0,0.1]
[1729275811042,0.1713,68726.0,68723.0,0.1]
[1729275812133,0.1713,68726.0,68716.0,0.12276088]
[1729275812775,0.0783,68726.0,68722.0,0.21809141]
[1729275813002,0.000869,68728.0,68723.0,0.1]
[1729275814057,0.000869,68728.0,68719.0,0.06627733]
[1729275814249,0.000869,68728.0,68719.0,0.0435176]
[1729275814705,0.000869,68728.0,68718.0,0.1435176]
[1729275814925,0.000869,68728.0,68718.0,0.0435176]
[1729275815131,0.000869,68728.0,68716.0,0.1435176]
[1729275815584,0.000869,68728.0,68716.0,0.1]
[1729275815796,0.000869,68728.0,68716.0,0.1435176]
[1729275816020,0.000869,68728.0,68716.0,0.1]
[1729275816250,0.000869,68728.0,68716.0,0.1435176]
[1729275816494,0.000869,68728.0,68721.0,0.001415]
[1729275816727,0.0979,68727.0,68721.0,0.001415]
[1729275816951,0.08601383,68726.0,68721.0,0.001415]
[1729275819210,0.08601383,68726.0,68721.0,0.101415]
[1729275822569,0.08601383,68726.0,68723.0,0.1]
[1729275822781,0.000869,68728.0,68723.0,0.1]
[1729275823893,0.000869,68728.0,68722.0,0.00280108]
[1729275824107,0.000869,68728.0,68724.0,0.1]
[1729275824524,0.000869,68728.0,68724.0,0.10290986]
[1729275825366,0.000869,68728.0,68724.0,0.00290986]
[1729275825578,0.000869,68728.0,68723.0,0.00290986]
[1729275825793,0.000869,68728.0,68723.0,1.820817]
[1729275826003,0.000869,68728.0,68724.0,0.1]
[1729275826417,0.000869,68728.0,68725.0,0.00290977]
[1729275827484,0.000869,68728.0,68727.0,0.1]
[1729275827700,0.000869,68728.0,68727.0,2.523656]
[1729275829455,0.000869,68728.0,68727.0,1.940596]
[1729275833243,0.000869,68728.0,68727.0,1.501999]
[1729275834646,0.000869,68728.0,68727.0,1.54548667]
[1729275834862,0.000869,68728.0,68727.0,1.501999]
[1729275835279,0.000869,68728.0,68727.0,1.54548667]
[1729275837119,0.000869,68728.0,68727.0,1.54549584]
[1729275838562,0.000869,68728.0,68727.0,1.16519384]
[1729275838841,0.000869,68728.0,68726.0,0.14349684]
[1729275839078,0.000869,68728.0,68726.0,0.04349684]
[1729275839570,0.000869,68728.0,68725.0,0.1]
[1729275839571,0.000869,68728.0,68725.0,0.04349684]
[1729275840031,0.000869,68728.0,68726.0,0.04349684]
[1729275840271,0.000869,68728.0,68723.0,0.14349684]
[1729275840485,0.000869,68728.0,68723.0,0.1]
[1729275840936,0.000869,68728.0,68724.0,0.00290976]
[1729275842247,0.000869,68728.0,68722.0,0.14349684]
[1729275842508,0.000869,68728.0,68725.0,0.1]
[1729275842944,0.000869,68728.0,68726.0,0.00258328]
[1729275843900,0.000869,68728.0,68726.0,0.04608012]
[1729275844710,0.000869,68728.0,68727.0,0.04349684]
[1729275845173,0.000869,68728.0,68725.0,0.16524527]
[1729275845174,0.000869,68728.0,68725.0,0.04349684]
[1729275845381,0.000869,68728.0,68722.0,0.14349684]
[1729275845590,0.000869,68728.0,68722.0,1.15317884]
[1729275845791,0.000869,68728.0,68723.0,0.04349684]
[1729275846006,0.000869,68728.0,68724.0,0.04349684]
[1729275846230,0.000869,68728.0,68722.0,0.14349684]
[1729275846231,0.082169,68728.0,68722.0,0.14349684]
[1729275846439,0.082169,68728.0,68724.0,0.04349684]
[1729275847265,0.082169,68728.0,68723.0,0.04349684]
[1729275847470,0.082169,68728.0,68722.0,0.31809141]
[1729275847471,0.000869,68728.0,68726.0,0.04349684]
[1729275848092,0.000869,68728.0,68726.0,0.14349684]
[1729275849619,0.000869,68728.0,68726.0,0.04629866]
[1729275850515,0.000869,68728.0,68727.0,0.1766]
[1729275850722,4e-05,68738.0,68728.0,0.1]
[1729275850934,4e-05,68738.0,68727.0,4.67522552]
[1729275850935,0.21809141,68737.0,68736.0,0.1]
[1729275851160,4e-05,68738.0,68736.0,0.1]
[1729275851161,4e-05,68738.0,68737.0,0.1]
[1729275851381,4e-05,68738.0,68737.0,2.97879989]
[1729275851606,4e-05,68738.0,68737.0,5.51146975]
[1729275851820,4e-05,68738.0,68737.0,5.08383389]
[1729275852036,4e-05,68738.0,68737.0,5.14027732]
[1729275852217,4e-05,68738.0,68737.0,4.98468532]
[1729275852465,4e-05,68738.0,68737.0,4.89067232]
[1729275852688,4e-05,68738.0,68737.0,4.76022289]
[1729275854696,4e-05,68738.0,68737.0,4.86874367]
[1729275855546,4e-05,68738.0,68737.0,4.76022289]
[1729275855755,4e-05,68738.0,68737.0,4.23798989]
[1729275856805,4e-05,68738.0,68737.0,2.93392919]
[1729275857012,4e-05,68738.0,68737.0,1.97326219]
[1729275857244,4e-05,68738.0,68737.0,1.95157573]
[1729275857525,4e-05,68738.0,68737.0,1.92987667]
[1729275857689,4e-05,68738.0,68737.0,1.88518487]
[1729275858542,4e-05,68738.0,68737.0,1.84177415]
[1729275859410,4e-05,68738.0,68737.0,1.88518487]
[1729275859627,4e-05,68738.0,68737.0,1.84177415]
[1729275861110,4e-05,68738.0,68737.0,1.76657415]
[1729275861587,4e-05,68738.0,68737.0,1.80998487]
[1729275862060,4e-05,68738.0,68737.0,1.76657415]
[1729275864181,0.000869,68738.0,68737.0,1.76657415]
[1729275868592,0.000869,68738.0,68737.0,1.80998487]
[1729275869273,0.000869,68738.0,68737.0,1.8099955]
[1729275870210,0.000869,68738.0,68737.0,0.9449955]
[1729275870851,0.000869,68738.0,68737.0,0.9623582]
[1729275871476,0.000869,68738.0,68737.0,0.96236382]
[1729275872587,0.000869,68738.0,68737.0,4.71407382]
[1729275873246,0.000869,68738.0,68737.0,3.86983682]
[1729275873461,0.000869,68738.0,68737.0,3.56983682]
[1729275873888,0.001658,68742.0,68737.0,3.56983682]
[1729275874140,0.001658,68742.0,68739.0,0.14342308]
[1729275874349,0.001658,68742.0,68740.0,3.83016976]
[1729275874555,0.001658,68742.0,68741.0,0.17651273]
[1729275875603,0.001658,68742.0,68741.0,1.85975173]
[1729275875808,0.001658,68742.0,68741.0,2.881032]
[1729275876006,0.001658,68742.0,68741.0,3.651922]
[1729275876437,0.001658,68742.0,68741.0,3.151922]
[1729275877064,0.001658,68742.0,68741.0,2.906816]
[1729275877274,0.001658,68742.0,68741.0,2.644243]
[1729275877495,0.001658,68742.0,68741.0,1.313087]
[1729275880652,0.001658,68742.0,68741.0,1.3565126]
[1729275880864,0.001658,68742.0,68741.0,1.50547175]
[1729275881069,0.001658,68742.0,68741.0,1.46204615]
[1729275881493,0.21809141,68753.0,68741.0,1.169182]
[1729275881706,0.21809141,68753.0,68743.0,0.1]
[1729275881934,0.00331383,68755.0,68744.0,1.037446]
[1729275882122,0.01230871,68754.0,68745.0,0.1]
[1729275883166,0.01230871,68754.0,68740.0,0.16013966]
[1729275883391,0.01230871,68754.0,68744.0,0.1]
[1729275883889,0.0786,68756.0,68744.0,0.1]
[1729275884398,0.01565053,68755.0,68744.0,0.1]
[1729275885718,0.01565053,68755.0,68745.0,0.04475288]
[1729275885933,0.01565053,68755.0,68744.0,0.1]
[1729275886142,0.0123367,68755.0,68744.0,0.1]
[1729275887424,0.01565053,68755.0,68744.0,0.1]
[1729275888105,0.01647953,68755.0,68744.0,0.1]
[1729275888979,0.0131657,68755.0,68745.0,0.04475358]
[1729275889228,0.0131657,68755.0,68744.0,0.1]
[1729275889438,0.01647953,68755.0,68744.0,0.21809141]
[1729275889647,0.01647953,68755.0,68745.0,0.1]
[1729275891358,0.01089748,68754.0,68745.0,0.10290899]
[1729275891572,0.01647953,68755.0,68745.0,0.10290899]
[1729275891788,0.01233065,68753.0,68745.0,0.10290899]
[1729275892007,0.01233258,68754.0,68745.0,0.10290899]
[1729275892224,0.00414283,68755.0,68745.0,0.10290899]
[1729275892451,0.01233065,68753.0,68745.0,0.10290899]
[1729275892659,0.01233258,68754.0,68745.0,0.10290899]
[1729275892868,0.00414283,68755.0,68745.0,0.10290899]
[1729275893107,0.01233065,68753.0,68745.0,0.10290899]
[1729275893317,0.01089739,68754.0,68745.0,0.11958283]
[1729275893552,0.01233065,68753.0,68745.0,0.11958283]
[1729275893984,0.00414283,68755.0,68745.0,0.11958283]
[1729275894199,0.01089722,68754.0,68745.0,0.11958283]
[1729275894420,0.00414283,68755.0,68745.0,0.10290899]
[1729275894630,0.0108972,68754.0,68745.0,0.14637224]
[1729275894834,0.00414283,68755.0,68745.0,0.14637224]
[1729275895046,0.0108972,68754.0,68745.0,0.14637224]
[1729275895264,0.00414283,68755.0,68745.0,0.14637224]
[1729275895489,0.01089717,68754.0,68745.0,0.14637224]
[1729275895676,0.00414283,68755.0,68747.0,0.04346325]
[1729275895928,0.01089717,68754.0,68747.0,0.04346325]
[1729275896138,0.00414283,68755.0,68747.0,0.04346325]
[1729275896350,0.01089715,68754.0,68747.0,0.04346325]
[1729275896591,0.00414283,68755.0,68748.0,0.04346325]
[1729275896836,0.00414283,68755.0,68750.0,0.1]
[1729275897042,0.00414283,68755.0,68751.0,0.04346325]
[1729275897254,0.00414283,68755.0,68752.0,0.04346325]
[1729275897468,0.01233048,68754.0,68753.0,0.04346325]
[1729275898544,0.01233048,68754.0,68750.0,0.06519488]
[1729275898545,0.01233048,68754.0,68752.0,0.04346325]
[1729275898764,0.01233048,68754.0,68752.0,0.1]
[1729275899707,0.01233048,68754.0,68749.0,0.04346325]
[1729275899708,0.01233048,68754.0,68750.0,0.04346325]
[1729275900143,0.00414283,68755.0,68750.0,0.04346325]
[1729275902140,0.000829,68755.0,68754.0,0.21809141]
[1729275902386,0.000829,68755.0,68754.0,0.16519488]
[1729275902636,0.000829,68755.0,68754.0,0.18692651]
[1729275903063,0.000829,68755.0,68754.0,0.1]